lending/lending_fUSD_20250406
["ID","MTS","AMOUNT","RATE_DAILY","PERIOD"]
[357269228,1743970895863,-10033.81203274,0.00047369,30]
[357269229,1743970895890,-4608.692,0.000475,120]
[357269230,1743970895917,-303.59,0.000477,30]
[357269231,1743970895945,-300.0,0.000478,30]
[357269232,1743970895976,-500.0,0.00048,120]
[357269233,1743970896004,-308.0,0.00048,120]
[357269234,1743970896038,-150.0,0.00048369,120]
[357269235,1743970896067,-635.34,0.0004852,120]
[357269236,1743970896101,-500.0,0.00048767,120]
[357269237,1743970896131,-500.0,0.00048767,120]
[357269238,1743970896160,-500.0,0.00048767,120]
[357269239,1743970896188,-500.0,0.00048767,120]
[357269240,1743970896350,-500.0,0.00048767,120]
[357269241,1743970896409,-500.0,0.00048767,120]
[357269242,1743970896438,-500.0,0.00048767,120]
[357269243,1743970896467,-500.0,0.00048767,120]
[357269244,1743970896496,-488.46855525,0.00048767,120]
[357269245,1743970896526,-500.0,0.00048767,120]
[357269246,1743970896554,-500.0,0.00048767,120]
[357269247,1743970896582,-499.22530919,0.00048767,120]
[357269248,1743970896609,-500.0,0.00048767,120]
[357269249,1743970896637,-500.0,0.00048767,120]
[357269250,1743970896666,-500.0,0.00048767,120]
[357269251,1743970896695,-500.0,0.00048767,120]
[357269252,1743970896723,-500.0,0.00048767,120]
[357269253,1743970896751,-500.0,0.00048767,120]
[357269254,1743970896779,-500.0,0.00048767,120]
[357269255,1743970896807,-500.0,0.00048767,120]
[357269256,1743970896834,-150.0,0.00048767,120]
[357269257,1743970896860,-350.0,0.0004877,120]
[357269258,1743970896886,-350.0,0.0004878,120]
[357269259,1743970896912,-350.0,0.0004879,120]
[357269260,1743970896938,-1000.0,0.00048798,120]
[357269261,1743970896965,-97180.97828605,0.000488,120]
[357269262,1743970896992,-499999.0,0.000488,120]
[357269263,1743970897018,-366057.873947,0.000488,120]
[357269264,1743970907985,-174.80263643,0.000484,32]
[357269265,1743970908017,-133941.126053,0.000488,120]
[357269266,1743970908049,-499999.0,0.000488,120]
[357269267,1743970908078,-499999.0,0.000488,120]
[357269268,1743970908107,-17486.41531231,0.000488,120]
[357269269,1743970908136,-2005.8362575,0.000488,120]
[357269270,1743970908171,-3626.62082385,0.000488,120]
[357269271,1743970908203,-2000.0,0.000488,120]
[357269272,1743970908229,-2000.0,0.000488,120]
[357269273,1743970908256,-2000.0,0.000488,120]
[357269274,1743970908283,-2000.0,0.000488,120]
[357269275,1743970908310,-2000.0,0.000488,120]
[357269276,1743970908338,-2000.0,0.000488,120]
[357269277,1743970908365,-2000.0,0.000488,120]
[357269278,1743970908392,-2000.0,0.000488,120]
[357269279,1743970908420,-2000.0,0.000488,120]
[357269280,1743970908448,-2000.0,0.000488,120]
[357269281,1743970908475,-1755.537109,0.000488,120]
[357269282,1743970908510,-158.54,0.0004899,120]
[357269283,1743970908541,-339.18,0.00048997,120]
[357269284,1743970908570,-475.21622309,0.00048998,120]
[357269285,1743970908597,-151.33990958,0.00048999,30]
[357269286,1743970908624,-495.0,0.00049,90]
[357269287,1743970908651,-500.0,0.00049,120]
[357269288,1743970908678,-203.716824,0.00049257,120]
[357269289,1743970908704,-151.0,0.00049273,30]
[357269290,1743970908732,-1000.0,0.00049315,120]
[357269291,1743970908760,-527.95350245,0.00049315,120]
[357269292,1743970908790,-200.0,0.00049315,60]
[357269293,1743970908817,-152.192691,0.00049315,120]
[357269294,1743970908845,-152.192691,0.00049315,120]
[357269295,1743970908872,-152.192691,0.00049315,120]
[357269296,1743970908899,-152.192691,0.00049315,120]
[357269297,1743970908925,-152.192691,0.00049315,120]
[357269298,1743970908952,-152.192691,0.00049315,120]
[357269299,1743970908981,-152.192691,0.00049315,120]
[357269300,1743970909009,-152.192691,0.00049315,120]
[357269301,1743970909176,-152.192691,0.00049315,120]
[357269302,1743970909207,-152.192691,0.00049315,120]
[357269303,1743970909236,-152.192691,0.00049315,120]
[357269304,1743970909273,-152.192691,0.00049315,120]
[357269305,1743970909302,-152.192691,0.00049315,120]
[357269306,1743970909330,-152.192691,0.00049315,120]
[357269307,1743970909357,-152.192691,0.00049315,120]
[357269308,1743970909384,-152.192691,0.00049315,120]
[357269309,1743970909412,-206.37,0.00049315,60]
[357269310,1743970909440,-1000.0,0.00049342,120]
[357269311,1743970909467,-177.72638874,0.00049346,120]
[357269312,1743970909495,-962.27,0.00049346,30]
[357269313,1743970909523,-1000.0,0.00049369,120]
[357269314,1743970909551,-474.14351299,0.00049397,120]
[357269315,1743970909579,-161.040704,0.00049498,120]
[357269316,1743970909606,-213.70855184,0.000495,120]
[357269317,1743970909635,-500.0,0.000495,120]
[357269318,1743970909663,-151.0,0.000497,120]
[357269319,1743970909690,-172.005936,0.000497,120]
[357269320,1743970909718,-172.005936,0.000497,120]
[357269321,1743970909745,-173.106031,0.000497,120]
[357269322,1743970909773,-173.106031,0.000497,120]
[357269323,1743970909799,-151.0,0.000497,120]
[357269324,1743970909826,-224.187708,0.000497,120]
[357269325,1743970909852,-285.242633,0.000497,120]
[357269326,1743970909879,-285.242633,0.000497,120]
[357269327,1743970909906,-199.119452,0.000497,120]
[357269328,1743970909931,-199.119452,0.000497,120]
[357269329,1743970909957,-151.0,0.000497,120]
[357269330,1743970909983,-151.220721,0.000497,120]
[357269331,1743970910009,-342.934908,0.000497,120]
[357269332,1743970910039,-342.934908,0.000497,120]
[357269333,1743970910068,-151.0,0.000497,120]
[357269334,1743970910097,-151.0,0.000497,120]
[357269335,1743970910125,-151.0,0.000497,120]
[357269336,1743970910151,-151.0,0.000497,120]
[357269337,1743970910177,-381.438862,0.000497,120]
[357269338,1743970910203,-179.785597,0.000497,120]
[357269339,1743970910231,-179.785597,0.000497,120]
[357269340,1743970910258,-200.758614,0.000497,120]
[357269341,1743970910287,-248.968657,0.000497,120]
[357269342,1743970910312,-200.758614,0.000497,120]
[357269343,1743970910339,-151.0,0.000497,120]
[357269344,1743970910365,-387.308944,0.000497,120]
[357269345,1743970910391,-387.308944,0.000497,120]
[357269346,1743970910418,-152.192691,0.000497,120]
[357269347,1743970910445,-234.32789,0.000497,120]
[357269348,1743970910471,-152.192691,0.000497,120]
[357269349,1743970910497,-234.32789,0.000497,120]
[357269350,1743970910523,-151.0,0.000497,120]
[357269351,1743970910549,-153.332086,0.000497,120]
[357269352,1743970910575,-151.0,0.000497,120]
[357269353,1743970910601,-151.0,0.000497,120]
[357269354,1743970910627,-179.359833,0.000497,120]
[357269355,1743970910653,-179.359833,0.000497,120]
[357269356,1743970910679,-215.004019,0.000497,120]
[357269357,1743970910707,-215.004019,0.000497,120]
[357269358,1743970910733,-151.0,0.000497,120]
[357269359,1743970910759,-151.0,0.000497,120]
[357269360,1743970910788,-925.74346,0.000497,120]
[357269361,1743970910814,-263.289397,0.000497,120]
[357269362,1743970910840,-151.0,0.000497,120]
[357269363,1743970910865,-152.954856,0.000497,120]
[357269364,1743970910892,-169.349752,0.000497,120]
[357269365,1743970910918,-169.349751,0.000497,120]
[357269366,1743970910944,-201.961062,0.000497,120]
[357269367,1743970911088,-201.961064,0.000497,120]
[357269368,1743970911118,-151.0,0.000497,120]
[357269369,1743970911148,-198.886092,0.000497,120]
[357269370,1743970911175,-198.886088,0.000497,120]
[357269371,1743970911203,-213.147949,0.000497,120]
[357269372,1743970911230,-213.147953,0.000497,120]
[357269373,1743970911259,-150.0,0.00049739,120]
[357269374,1743970911289,-2305.17,0.0004976,30]
[357269375,1743970911314,-164838.05631122,0.0004979,120]
[357269376,1743970911339,-1128.68085537,0.0004979,120]
[357269377,1743970911364,-404.598981,0.0004979,120]
[357269378,1743970911390,-151.0,0.0004979,120]
[357269379,1743970911415,-206.17164,0.0004979,120]
[357269380,1743970911440,-151.0,0.0004979,120]
[357269381,1743970911465,-179.359833,0.0004979,120]
[357269382,1743970911490,-179.359832,0.0004979,120]
[357269383,1743970911515,-215.004019,0.0004979,120]
[357269384,1743970911540,-215.004025,0.0004979,120]
[357269385,1743970911567,-151.0,0.0004979,120]
[357269386,1743970911593,-200.239334,0.0004979,120]
[357269387,1743970911619,-925.74346877,0.0004979,120]
[357269388,1743970911645,-348.96,0.00049797,120]
[357269389,1743970911671,-2176.47,0.00049862,30]
[357269390,1743970911697,-151.0,0.00049862,120]
[357269391,1743970911722,-172.005936,0.00049862,120]
[357269392,1743970911748,-172.005936,0.00049862,120]
[357269393,1743970911773,-154.229502,0.00049862,120]
[357269394,1743970911800,-1414.716033,0.00049863,120]
[357269395,1743970911825,-151.0,0.00049878,120]
[357269396,1743970911850,-285.242633,0.00049878,120]
[357269397,1743970911875,-285.242633,0.00049878,120]
[357269398,1743970911900,-199.119452,0.00049878,120]
[357269399,1743970911925,-199.119452,0.00049878,120]
[357269400,1743970911950,-151.0,0.00049878,120]
[357269401,1743970911975,-1380.21,0.00049881,30]
[357269402,1743970911999,-173.106031,0.000499,120]
[357269403,1743970912024,-173.106031,0.000499,120]
[357269404,1743970912051,-604.01,0.00049908,30]
[357269405,1743970912076,-342.934908,0.00049908,120]
[357269406,1743970912102,-342.934904,0.00049908,120]
[357269407,1743970912128,-151.0,0.00049908,120]
[357269408,1743970912153,-151.0,0.00049908,120]
[357269409,1743970912177,-290.443883,0.00049908,120]
[357269410,1743970912202,-381.438854,0.00049908,120]
[357269411,1743970912228,-151.0,0.00049908,120]
[357269412,1743970912254,-152.192691,0.00049908,120]
[357269413,1743970912280,-234.32789,0.00049908,120]
[357269414,1743970912304,-152.1927,0.00049908,120]
[357269415,1743970912329,-234.32789,0.00049908,120]
[357269416,1743970912354,-155.36,0.0005,120]
[357269417,1743970912378,-75914.52210169,0.0005,30]
[357269418,1743970912402,-178.96065858,0.0005,120]
[357269419,1743970912428,-656.21612642,0.0005,120]
[357269420,1743970912452,-500.14303424,0.0005,120]
[357269421,1743970912477,-299.69305544,0.0005,60]
[357269422,1743970912502,-3666.24716296,0.0005,30]
[357269423,1743970912528,-488.53486221,0.0005,120]
[357269424,1743970912552,-213.04597003,0.0005,120]
[357269425,1743970912577,-500.0,0.0005,30]
[357269426,1743970912601,-643.38489944,0.0005,120]
[357269427,1743970912626,-157.84843391,0.0005,120]
[357269428,1743970912651,-500000.0,0.0005,30]
[357269429,1743970912677,-500.0,0.0005,120]
[357269430,1743970912701,-500.0,0.0005,120]
[357269431,1743970912854,-500.0,0.0005,120]
[357269432,1743970912879,-151.0,0.0005,120]
[357269433,1743970912904,-172.005936,0.0005,120]
[357269434,1743970912929,-172.005936,0.0005,120]
[357269435,1743970912954,-404.598975,0.0005,120]
[357269436,1743970912978,-173.106031,0.0005,120]
[357269437,1743970913003,-173.106025,0.0005,120]
[357269438,1743970913027,-151.0,0.0005,120]
[357269439,1743970913054,-285.242633,0.0005,120]
[357269440,1743970913079,-285.242639,0.0005,120]
[357269441,1743970913104,-199.119452,0.0005,120]
[357269442,1743970913130,-199.119461,0.0005,120]
[357269443,1743970913155,-151.0,0.0005,120]
[357269444,1743970913180,-2100.0,0.0005,120]
[357269445,1743970913204,-243.256741,0.0005,120]
[357269446,1743970913230,-179.785597,0.0005,120]
[357269447,1743970913254,-179.785593,0.0005,120]
[357269448,1743970913280,-200.758614,0.0005,120]
[357269449,1743970913304,-200.75862,0.0005,120]
[357269450,1743970913329,-387.308944,0.0005,120]
[357269451,1743970913354,-387.308946,0.0005,120]
[357269452,1743970913379,-234.32789,0.0005,120]
[357269453,1743970913403,-234.327898,0.0005,120]
[357269454,1743970913428,-151.0,0.0005,120]
[357269455,1743970913454,-151.0,0.0005,120]
[357269456,1743970913480,-151.0,0.0005,120]
[357269457,1743970913505,-151.0,0.0005,120]
[357269458,1743970913530,-151.0,0.00050012,30]
[357269459,1743970913554,-927.0,0.000504,30]
[357269460,1743970913579,-200.0,0.00050418,120]
[357269461,1743970913603,-161.040704,0.00050498,120]
[357269462,1743970913628,-500.0,0.000505,120]
[357269463,1743970913653,-1285.0,0.00050641,120]
[357269464,1743970913678,-266.887,0.00050641,120]
[357269465,1743970913711,-484.003,0.00050641,120]
[357269466,1743970913740,-3954.0,0.00050641,120]
[357269467,1743970913766,-1119.0,0.00050641,120]
[357269468,1743970913793,-500.0,0.00051,120]
[357269469,1743970913818,-1744.95496242,0.00051,120]
[357269470,1743970913844,-500.0,0.00051,120]
[357269471,1743970913870,-712.4695451,0.00051,120]
[357269472,1743970913896,-899.99999907,0.00051,52]
[357269473,1743970913921,-1000.0,0.00051005,120]
[357269474,1743970913947,-150.0,0.00051109,120]
[357269475,1743970913973,-161.040704,0.00051498,120]
[357269476,1743970913999,-200.0,0.00051578,120]
[357269477,1743970914029,-500.0,0.00051954,120]
[357269478,1743970914059,-500.0,0.00051954,120]
[357269479,1743970914087,-500.0,0.00051954,120]
[357269480,1743970914113,-500.0,0.00051954,120]
[357269481,1743970914140,-500.0,0.00051954,120]
[357269482,1743970914170,-500.0,0.00051954,120]
[357269483,1743970914195,-500.0,0.00051954,120]
[357269484,1743970914221,-500.0,0.00051954,120]
[357269485,1743970914247,-500.0,0.00051954,120]
[357269486,1743970914273,-500.0,0.00051954,120]
[357269487,1743970914301,-500.0,0.00051954,120]
[357269488,1743970914327,-500.0,0.00051954,120]
[357269489,1743970914352,-500.0,0.00051954,120]
[357269490,1743970914377,-500.0,0.00051954,120]
[357269491,1743970914403,-500.0,0.00051954,120]
[357269492,1743970914567,-500.0,0.00051954,120]
[357269493,1743970914594,-471.01077235,0.00051954,120]
[357269494,1743970922827,-153.38,0.00049515,120]
[357269495,1743970922855,-174.80263643,0.000499,38]
[357269496,1743970922882,-174.80263643,0.000514,44]
[357269497,1743970922908,-28.98922765,0.00051954,120]
[357269498,1743970922935,-500.0,0.00051954,120]
[357269499,1743970922963,-500.0,0.00051954,120]
[357269500,1743970922989,-500.0,0.00051954,120]
[357269501,1743970923015,-500.0,0.00051954,120]
[357269502,1743970923046,-500.0,0.00051954,120]
[357269503,1743970923075,-500.0,0.00051954,120]
[357269504,1743970923104,-500.0,0.00051954,120]
[357269505,1743970923132,-500.0,0.00051954,120]
[357269506,1743970923161,-500.0,0.00051954,120]
[357269507,1743970923188,-500.0,0.00051954,120]
[357269508,1743970923215,-952.0,0.00051954,120]
[357269509,1743970923242,-945.0,0.00051954,120]
[357269510,1743970923269,-500.0,0.00051954,120]
[357269511,1743970923296,-500.0,0.00051954,120]
[357269512,1743970923322,-500.0,0.00051954,120]
[357269513,1743970923348,-500.0,0.00051954,120]
[357269514,1743970923374,-500.0,0.00051954,120]
[357269515,1743970923400,-500.0,0.00051954,120]
[357269516,1743970923426,-500.0,0.00051954,120]
[357269517,1743970923452,-500.0,0.00051954,120]
[357269518,1743970923478,-560.0,0.00051954,120]
[357269519,1743970923506,-150.0,0.00051954,120]
[357269520,1743970923531,-221.42433381,0.00051998,120]
[357269521,1743970923672,-421.6740664,0.00052,120]
[357269522,1743970923702,-233.76133446,0.00052,120]
[357269523,1743970923729,-18271.54,0.00052,120]
[357269524,1743970923754,-500.0,0.00052,120]
[357269525,1743970923780,-456.04,0.00052,120]
[357269526,1743970923807,-670.2085839,0.00052,30]
[357269527,1743970923834,-1000.0,0.0005205,120]
[357269528,1743970923860,-947.24,0.0005205,120]
[357269529,1743970923888,-158.44951439,0.0005205,120]
[357269530,1743970923914,-158.44951439,0.0005205,120]
[357269531,1743970923942,-158.44951439,0.0005205,120]
[357269532,1743970923969,-158.44951439,0.0005205,120]
[357269533,1743970923994,-158.44951439,0.0005205,120]
[357269534,1743970924021,-158.44951439,0.0005205,120]
[357269535,1743970924051,-158.44951439,0.0005205,120]
[357269536,1743970924077,-158.44951439,0.0005205,120]
[357269537,1743970924105,-158.44,0.0005205,120]
[357269538,1743970924131,-166.37199011,0.0005205,120]
[357269539,1743970924155,-166.37199011,0.0005205,120]
[357269540,1743970924180,-166.37199011,0.0005205,120]
[357269541,1743970924205,-166.37199011,0.0005205,120]
[357269542,1743970924231,-166.37199011,0.0005205,120]
[357269543,1743970924258,-166.37199011,0.0005205,120]
[357269544,1743970924286,-166.37199011,0.0005205,120]
[357269545,1743970924313,-166.37199011,0.0005205,120]
[357269546,1743970924340,-166.37199011,0.0005205,120]
[357269547,1743970924365,-166.37199011,0.0005205,120]
[357269548,1743970924390,-166.37199011,0.0005205,120]
[357269549,1743970924439,-166.37199011,0.0005205,120]
[357269550,1743970924490,-166.37199011,0.0005205,120]
[357269551,1743970924541,-427.57857739,0.0005205,120]
[357269552,1743970924589,-427.57857739,0.0005205,120]
[357269553,1743970924631,-427.57857739,0.0005205,120]
[357269554,1743970924673,-427.57857739,0.0005205,120]
[357269555,1743970924713,-427.57857739,0.0005205,120]
[357269556,1743970924755,-427.57857739,0.0005205,120]
[357269557,1743970924797,-427.57857739,0.0005205,120]
[357269558,1743970924838,-427.57857739,0.0005205,120]
[357269559,1743970924880,-427.57857739,0.0005205,120]
[357269560,1743970924920,-427.57857739,0.0005205,120]
[357269561,1743970924960,-427.57857739,0.0005205,120]
[357269562,1743970925003,-427.57857739,0.0005205,120]
[357269563,1743970925045,-427.57857739,0.0005205,120]
[357269564,1743970925088,-427.57857739,0.0005205,120]
[357269565,1743970925130,-427.57857739,0.0005205,120]
[357269566,1743970925171,-427.57857739,0.0005205,120]
[357269567,1743970925211,-427.57857739,0.0005205,120]
[357269568,1743970925254,-427.57857739,0.0005205,120]
[357269569,1743970925297,-427.57857739,0.0005205,120]
[357269570,1743970925337,-427.57,0.0005205,120]
[357269571,1743970925379,-997.68334725,0.0005205,120]
[357269572,1743970925419,-997.68334725,0.0005205,120]
[357269573,1743970925445,-997.68334725,0.0005205,120]
[357269574,1743970925470,-997.68334725,0.0005205,120]
[357269575,1743970925498,-997.68334725,0.0005205,120]
[357269576,1743970925765,-997.68334725,0.0005205,120]
[357269577,1743970925794,-997.68334725,0.0005205,120]
[357269578,1743970925819,-997.68334725,0.0005205,120]
[357269579,1743970925845,-997.68334725,0.0005205,120]
[357269580,1743970925871,-997.68334725,0.0005205,120]
[357269581,1743970925896,-997.68334725,0.0005205,120]
[357269582,1743970925922,-997.68334725,0.0005205,120]
[357269583,1743970925946,-997.68334725,0.0005205,120]
[357269584,1743970925971,-603.67159055,0.0005205,120]
[357269585,1743970925996,-603.67159055,0.0005205,120]
[357269586,1743970926022,-603.67159055,0.0005205,120]
[357269587,1743970926048,-603.67159055,0.0005205,120]
[357269588,1743970926077,-603.67159055,0.0005205,120]
[357269589,1743970926105,-603.67159055,0.0005205,120]
[357269590,1743970926131,-603.67159055,0.0005205,120]
[357269591,1743970926157,-603.67159055,0.0005205,120]
[357269592,1743970926183,-603.67159055,0.0005205,120]
[357269593,1743970926209,-603.67159055,0.0005205,120]
[357269594,1743970926235,-603.67159055,0.0005205,120]
[357269595,1743970926259,-603.67159055,0.0005205,120]
[357269596,1743970926284,-603.67159055,0.0005205,120]
[357269597,1743970926311,-603.67159055,0.0005205,120]
[357269598,1743970926337,-603.67159055,0.0005205,120]
[357269599,1743970926362,-603.67159055,0.0005205,120]
[357269600,1743970926388,-603.67159055,0.0005205,120]
[357269601,1743970926415,-603.67159055,0.0005205,120]
[357269602,1743970926440,-603.67159055,0.0005205,120]
[357269603,1743970926466,-603.67,0.0005205,120]
[357269604,1743970926491,-1408.56704463,0.0005205,120]
[357269605,1743970926518,-1408.56704463,0.0005205,120]
[357269606,1743970926546,-1408.56704463,0.0005205,120]
[357269607,1743970926575,-1408.56704463,0.0005205,120]
[357269608,1743970926602,-1408.56704463,0.0005205,120]
[357269609,1743970926629,-1408.56704463,0.0005205,120]
[357269610,1743970926656,-1408.56704463,0.0005205,120]
[357269611,1743970926682,-1408.56704463,0.0005205,120]
[357269612,1743970926707,-1408.56704463,0.0005205,120]
[357269613,1743970926733,-1408.56704463,0.0005205,120]
[357269614,1743970926759,-1408.56704463,0.0005205,120]
[357269615,1743970926785,-1408.56704463,0.0005205,120]
[357269616,1743970926812,-1408.56704463,0.0005205,120]
[357269617,1743970926837,-250.0,0.00052054,120]
[357269618,1743970926863,-250.0,0.00052054,120]
[357269619,1743970926889,-1760.479773,0.00052054,120]
[357269620,1743970926915,-151.0,0.00052054,120]
[357269621,1743970926940,-172.005936,0.00052054,120]
[357269622,1743970926966,-172.005936,0.00052054,120]
[357269623,1743970926991,-4233.847295,0.00052054,120]
[357269624,1743970927017,-175.865933,0.00052054,120]
[357269625,1743970927044,-169.813844,0.00052054,120]
[357269626,1743970927073,-161.942355,0.00052054,120]
[357269627,1743970927100,-524.25354311,0.00052054,120]
[357269628,1743970927126,-500.0,0.00052054,120]
[357269629,1743970927152,-500.0,0.00052054,120]
[357269630,1743970927178,-500.0,0.00052054,120]
[357269631,1743970927203,-503.26535608,0.00052054,120]
[357269632,1743970927228,-500.0,0.00052054,120]
[357269633,1743970927253,-513.18948668,0.00052054,120]
[357269634,1743970927277,-500.0,0.00052054,120]
[357269635,1743970927304,-500.0,0.00052054,120]
[357269636,1743970927329,-500.0,0.00052054,120]
[357269637,1743970927354,-500.0,0.00052054,120]
[357269638,1743970927379,-500.0,0.00052054,120]
[357269639,1743970927405,-502.4628527,0.00052054,120]
[357269640,1743970927430,-500.0,0.00052054,120]
[357269641,1743970927456,-505.86205155,0.00052054,120]
[357269642,1743970927481,-554.02293299,0.00052054,120]
[357269643,1743970927507,-500.0,0.00052054,120]
[357269644,1743970927532,-500.0,0.00052054,120]
[357269645,1743970927560,-501.98843701,0.00052054,120]
[357269646,1743970927585,-504.6671607,0.00052054,120]
[357269647,1743970927611,-500.0,0.00052054,120]
[357269648,1743970927636,-502.86085126,0.00052054,120]
[357269649,1743970927662,-500.0,0.00052054,120]
[357269650,1743970927698,-510.82620756,0.00052054,120]
[357269651,1743970927723,-513.46466919,0.00052054,120]
[357269652,1743970927748,-500.0,0.00052054,120]
[357269653,1743970927773,-500.0,0.00052054,120]
[357269654,1743970927932,-499.30219542,0.00052054,120]
[357269655,1743970927959,-500.0,0.00052054,120]
[357269656,1743970927983,-500.0,0.00052054,120]
[357269657,1743970928009,-500.0,0.00052054,120]
[357269658,1743970928034,-500.0,0.00052054,120]
[357269659,1743970928062,-556.01930735,0.00052054,120]
[357269660,1743970928087,-519.95185,0.00052054,120]
[357269661,1743970928112,-521.24256788,0.00052054,120]
[357269662,1743970928139,-500.0,0.00052054,120]
[357269663,1743970928164,-338.52144647,0.00052054,120]
[357269664,1743970928189,-500.0,0.00052054,120]
[357269665,1743970928214,-500.0,0.00052054,120]
[357269666,1743970928239,-500.0,0.00052054,120]
[357269667,1743970928265,-500.0,0.00052054,120]
[357269668,1743970928291,-500.0,0.00052054,120]
[357269669,1743970928316,-231.44101595,0.00052054,120]
[357269670,1743970928342,-500.0,0.00052054,120]
[357269671,1743970928367,-500.0,0.00052054,120]
[357269672,1743970928392,-500.0,0.00052054,120]
[357269673,1743970928417,-500.0,0.00052054,120]
[357269674,1743970928443,-500.0,0.00052054,120]
[357269675,1743970928470,-500.0,0.00052054,120]
[357269676,1743970928496,-500.0,0.00052054,120]
[357269677,1743970928521,-505.72089817,0.00052054,120]
[357269678,1743970928545,-514.00650799,0.00052054,120]
[357269679,1743970928569,-500.0,0.00052054,120]
[357269680,1743970928593,-508.27853104,0.00052054,120]
[357269681,1743970928619,-500.0,0.00052054,120]
[357269682,1743970928643,-501.1126127,0.00052054,120]
[357269683,1743970928667,-503.17837914,0.00052054,120]
[357269684,1743970928690,-500.0,0.00052054,120]
[357269685,1743970928714,-503.61256628,0.00052054,120]
[357269686,1743970928739,-501.41463802,0.00052054,120]
[357269687,1743970928763,-533.19090259,0.00052054,120]
[357269688,1743970928787,-500.0,0.00052054,120]
[357269689,1743970928812,-502.79131331,0.00052054,120]
[357269690,1743970928836,-624.42633055,0.00052054,120]
[357269691,1743970928861,-500.0,0.00052054,60]
[357269692,1743970928885,-513.11603065,0.00052054,120]
[357269693,1743970928910,-502.17636262,0.00052054,120]
[357269694,1743970928934,-502.33251412,0.00052054,120]
[357269695,1743970928958,-500.50767895,0.00052054,120]
[357269696,1743970928983,-500.0,0.00052054,120]
[357269697,1743970929006,-500.0,0.00052054,120]
[357269698,1743970929031,-1027.74267855,0.00052054,88]
[357269699,1743970929058,-635.62093382,0.00052054,120]
[357269700,1743970929083,-522.27257968,0.00052054,120]
[357269701,1743970929109,-502.87401774,0.00052054,120]
[357269702,1743970929134,-502.70483973,0.00052054,120]
[357269703,1743970929159,-500.0,0.00052054,120]
[357269704,1743970929183,-500.0,0.00052054,120]
[357269705,1743970929207,-500.0,0.00052054,120]
[357269706,1743970929232,-519.30030094,0.00052054,120]
[357269707,1743970929256,-503.02037652,0.00052054,120]
[357269708,1743970929280,-502.39494381,0.00052054,120]
[357269709,1743970929305,-501.83064438,0.00052054,120]
[357269710,1743970929329,-523.69530701,0.00052054,120]
[357269711,1743970929353,-364.36298309,0.00052054,120]
[357269712,1743970929377,-517.6632632,0.00052054,120]
[357269713,1743970929401,-500.0,0.00052054,120]
[357269714,1743970929426,-500.0,0.00052054,120]
[357269715,1743970929450,-501.40850566,0.00052054,120]
[357269716,1743970929475,-299.73167623,0.00052054,120]
[357269717,1743970929499,-219.40309648,0.00052054,120]
[357269718,1743970929524,-500.0,0.00052054,120]
[357269719,1743970929548,-500.0,0.00052054,120]
[357269720,1743970929571,-500.0,0.00052054,120]
[357269721,1743970929596,-500.0,0.00052054,120]
[357269722,1743970929620,-500.0,0.00052054,120]
[357269723,1743970929645,-525.64405219,0.00052054,120]
[357269724,1743970929670,-527.41351156,0.00052054,120]
[357269725,1743970929695,-500.0,0.00052054,120]
[357269726,1743970929719,-502.91418345,0.00052054,120]
[357269727,1743970929743,-500.0,0.00052054,120]